lending/lending_fUSD_20241025
["ID","MTS","AMOUNT","RATE_DAILY","PERIOD"]
[340834679,1729897852659,-542.43,0.00060999,7]
[340834680,1729897852668,-542.43,0.00060999,7]
[340834681,1729897852677,-542.43,0.00060999,7]
[340834682,1729897852687,-542.43,0.00060999,7]
[340834683,1729897852696,-542.43,0.00060999,7]
[340834684,1729897852707,-542.59783971,0.00060999,7]
[340834685,1729897852716,-151.0,0.00060999,120]
[340834686,1729897852726,-151.0,0.00060999,120]
[340834687,1729897852735,-903.19,0.00060999,120]
[340834688,1729897852745,-903.19,0.00060999,120]
[340834689,1729897852754,-903.19,0.00060999,120]
[340834690,1729897852764,-903.19,0.00060999,120]
[340834691,1729897852773,-903.19,0.00060999,120]
[340834692,1729897852782,-903.19,0.00060999,120]
[340834693,1729897852792,-903.19,0.00060999,120]
[340834694,1729897852801,-903.40557084,0.00060999,120]
[340834695,1729897852811,-1134.77,0.00060999,120]
[340834696,1729897852820,-1134.77,0.00060999,120]
[340834697,1729897852830,-1134.77,0.00060999,120]
[340834698,1729897852839,-1134.77,0.00060999,120]
[340834699,1729897852849,-1134.77,0.00060999,120]
[340834700,1729897852858,-1134.77,0.00060999,120]
[340834701,1729897852868,-1134.77,0.00060999,120]
[340834702,1729897852877,-1134.77,0.00060999,120]
[340834703,1729897852886,-1134.77,0.00060999,120]
[340834704,1729897852897,-1134.77,0.00060999,120]
[340834705,1729897852906,-1134.77,0.00060999,120]
[340834706,1729897852915,-1134.77,0.00060999,120]
[340834707,1729897852924,-1134.90600812,0.00060999,120]
[340834708,1729897852934,-500.0,0.00060999,120]
[340834709,1729897852943,-500.0,0.00060999,120]
[340834710,1729897852953,-500.0,0.00060999,120]
[340834711,1729897852962,-500.0,0.00060999,120]
[340834712,1729897852972,-500.0,0.00060999,120]
[340834713,1729897852982,-500.0,0.00060999,120]
[340834714,1729897852991,-500.0,0.00060999,120]
[340834715,1729897853001,-154.06589881,0.00060999,120]
[340834716,1729897853011,-948.63,0.00060999,120]
[340834717,1729897853020,-948.63,0.00060999,120]
[340834718,1729897853029,-948.63,0.00060999,120]
[340834719,1729897853038,-151.0,0.00060999,120]
[340834720,1729897853048,-948.63,0.00060999,120]
[340834721,1729897853058,-948.63,0.00060999,120]
[340834722,1729897853068,-948.63,0.00060999,120]
[340834723,1729897853077,-948.63,0.00060999,120]
[340834724,1729897853087,-948.69510314,0.00060999,120]
[340834725,1729897853096,-151.0,0.00060999,120]
[340834726,1729897853106,-500.0,0.00060999,120]
[340834727,1729897853115,-500.0,0.00060999,120]
[340834728,1729897853124,-500.0,0.00060999,120]
[340834729,1729897853135,-500.0,0.00060999,120]
[340834730,1729897853144,-500.0,0.00060999,120]
[340834731,1729897853154,-151.0,0.00060999,120]
[340834732,1729897853163,-500.0,0.00060999,120]
[340834733,1729897853173,-500.0,0.00060999,120]
[340834734,1729897853182,-500.0,0.00060999,120]
[340834735,1729897853192,-500.0,0.00060999,120]
[340834736,1729897853201,-500.0,0.00060999,120]
[340834737,1729897853211,-500.0,0.00060999,120]
[340834738,1729897853220,-500.0,0.00060999,120]
[340834739,1729897853229,-151.0,0.00060999,120]
[340834740,1729897853239,-464.95589456,0.00060999,120]
[340834741,1729897853248,-151.0,0.00060999,120]
[340834742,1729897853258,-151.0,0.00060999,120]
[340834743,1729897853267,-151.0,0.00060999,120]
[340834744,1729897853276,-205.507858,0.00060999,120]
[340834745,1729897853286,-205.507858,0.00060999,120]
[340834746,1729897853295,-153.14201,0.00060999,120]
[340834747,1729897853304,-151.0,0.00060999,120]
[340834748,1729897853314,-151.0,0.00060999,120]
[340834749,1729897853323,-151.0,0.00060999,120]
[340834750,1729897853332,-1165.71,0.00060999,120]
[340834751,1729897853341,-1165.71,0.00060999,120]
[340834752,1729897853351,-1165.71,0.00060999,120]
[340834753,1729897853360,-1165.71,0.00060999,120]
[340834754,1729897853369,-1165.71,0.00060999,120]
[340834755,1729897853378,-1165.71,0.00060999,120]
[340834756,1729897853388,-1165.71,0.00060999,120]
[340834757,1729897853398,-1165.81026388,0.00060999,120]
[340834758,1729897853407,-648.315824,0.00060999,120]
[340834759,1729897853417,-648.315824,0.00060999,120]
[340834760,1729897853427,-251.232711,0.00060999,120]
[340834761,1729897853436,-500.0,0.00060999,120]
[340834762,1729897853445,-500.0,0.00060999,120]
[340834763,1729897853454,-597.55,0.00060999,120]
[340834764,1729897853463,-151.0,0.00060999,120]
[340834765,1729897853472,-151.0,0.00060999,120]
[340834766,1729897853482,-151.0,0.00060999,120]
[340834767,1729897853491,-151.0,0.00060999,120]
[340834768,1729897853500,-151.0,0.00060999,120]
[340834769,1729897853509,-167.257548,0.00060999,120]
[340834770,1729897853519,-167.257548,0.00060999,120]
[340834771,1729897853528,-167.257548,0.00060999,120]
[340834772,1729897853537,-167.257548,0.00060999,120]
[340834773,1729897853546,-151.0,0.00060999,120]
[340834774,1729897853555,-151.0,0.00060999,120]
[340834775,1729897853565,-151.0,0.00060999,120]
[340834776,1729897853575,-151.0,0.00060999,120]
[340834777,1729897853584,-152.040197,0.00060999,120]
[340834778,1729897853594,-153.158662,0.00060999,120]
[340834779,1729897853604,-151.0,0.00060999,120]
[340834780,1729897853614,-151.0,0.00060999,120]
[340834781,1729897853623,-151.0,0.00060999,120]
[340834782,1729897853632,-157.016258,0.00060999,120]
[340834783,1729897853642,-285.605558,0.00060999,120]
[340834784,1729897853651,-151.0,0.00060999,120]
[340834785,1729897853660,-500.0,0.00060999,55]
[340834786,1729897853670,-571.84,0.00060999,55]
[340834787,1729897853679,-633.984123,0.00060999,120]
[340834788,1729897853688,-633.984123,0.00060999,120]
[340834789,1729897853697,-570.25,0.00060999,120]
[340834790,1729897853706,-570.25,0.00060999,120]
[340834791,1729897853715,-570.25,0.00060999,120]
[340834792,1729897853725,-570.25,0.00060999,120]
[340834793,1729897853734,-570.25,0.00060999,120]
[340834794,1729897853743,-570.25,0.00060999,120]
[340834795,1729897853752,-570.25,0.00060999,120]
[340834796,1729897853761,-570.25,0.00060999,120]
[340834797,1729897853771,-570.25,0.00060999,120]
[340834798,1729897853780,-570.25,0.00060999,120]
[340834799,1729897853789,-570.25,0.00060999,120]
[340834800,1729897853798,-570.25,0.00060999,120]
[340834801,1729897853807,-570.43,0.00060999,120]
[340834802,1729897853817,-151.0,0.00060999,120]
[340834803,1729897853826,-151.0,0.00060999,120]
[340834804,1729897853835,-151.0,0.00060999,120]
[340834805,1729897853844,-151.0,0.00060999,120]
[340834806,1729897853853,-244.42014,0.00060999,120]
[340834807,1729897853862,-296.992673,0.00060999,120]
[340834808,1729897853871,-170.082598,0.00060999,120]
[340834809,1729897853881,-296.992673,0.00060999,120]
[340834810,1729897853890,-170.082598,0.00060999,120]
[340834811,1729897853906,-151.0,0.00060999,120]
[340834812,1729897853915,-151.0,0.00060999,120]
[340834813,1729897853924,-151.0,0.00060999,120]
[340834814,1729897853933,-263.447741,0.00060999,120]
[340834815,1729897853943,-243.54123793,0.00060999,120]
[340834816,1729897853953,-7774.09,0.00060999,120]
[340834817,1729897853963,-7774.09,0.00060999,120]
[340834818,1729897853972,-7774.09,0.00060999,120]
[340834819,1729897853981,-7774.09,0.00060999,120]
[340834820,1729897853992,-7774.09,0.00060999,120]
[340834821,1729897854002,-7774.09,0.00060999,120]
[340834822,1729897854011,-7774.09,0.00060999,120]
[340834823,1729897854021,-7774.09,0.00060999,120]
[340834824,1729897854030,-7774.09,0.00060999,120]
[340834825,1729897854040,-7774.09,0.00060999,120]
[340834826,1729897854049,-7774.09,0.00060999,120]
[340834827,1729897854059,-207.552281,0.00060999,120]
[340834828,1729897854068,-7774.09,0.00060999,120]
[340834829,1729897854078,-7774.2896,0.00060999,120]
[340834830,1729897854087,-207.552281,0.00060999,120]
[340834831,1729897854097,-224.794234,0.00060999,120]
[340834832,1729897854106,-151.0,0.00060999,120]
[340834833,1729897854116,-224.794234,0.00060999,120]
[340834834,1729897854125,-559.31,0.00060999,120]
[340834835,1729897854135,-559.31,0.00060999,120]
[340834836,1729897854145,-559.31,0.00060999,120]
[340834837,1729897854155,-559.31,0.00060999,120]
[340834838,1729897854164,-559.31,0.00060999,120]
[340834839,1729897854174,-559.31,0.00060999,120]
[340834840,1729897854183,-291.65933,0.00060999,120]
[340834841,1729897854193,-559.31,0.00060999,120]
[340834842,1729897854203,-559.31,0.00060999,120]
[340834843,1729897854213,-559.31,0.00060999,120]
[340834844,1729897854223,-559.31,0.00060999,120]
[340834845,1729897854232,-559.31,0.00060999,120]
[340834846,1729897854242,-559.31,0.00060999,120]
[340834847,1729897854251,-559.34588127,0.00060999,120]
[340834848,1729897854261,-151.0,0.00060999,30]
[340834849,1729897854270,-151.0,0.00060999,120]
[340834850,1729897854279,-151.0,0.00060999,30]
[340834851,1729897854289,-151.0,0.00060999,120]
[340834852,1729897854298,-549.54,0.00060999,120]
[340834853,1729897854308,-549.54,0.00060999,120]
[340834854,1729897854317,-549.54,0.00060999,120]
[340834855,1729897854327,-549.54,0.00060999,120]
[340834856,1729897854336,-549.54,0.00060999,120]
[340834857,1729897854426,-549.54,0.00060999,120]
[340834858,1729897854436,-549.54,0.00060999,120]
[340834859,1729897854446,-549.55098822,0.00060999,120]
[340834860,1729897854456,-500.0,0.00060999,21]
[340834861,1729897854465,-500.0,0.00060999,120]
[340834862,1729897854477,-500.0,0.00060999,120]
[340834863,1729897854487,-500.0,0.00060999,120]
[340834864,1729897854496,-500.0,0.00060999,120]
[340834865,1729897854505,-500.0,0.00060999,120]
[340834866,1729897854516,-500.0,0.00060999,120]
[340834867,1729897854525,-500.0,0.00060999,120]
[340834868,1729897854534,-500.0,0.00060999,120]
[340834869,1729897854543,-500.0,0.00060999,120]
[340834870,1729897854552,-319.76681168,0.00060999,120]
[340834871,1729897854562,-1608.6,0.00060999,120]
[340834872,1729897854572,-1608.6,0.00060999,120]
[340834873,1729897854581,-1608.6,0.00060999,120]
[340834874,1729897854590,-1608.6,0.00060999,120]
[340834875,1729897854599,-1608.6,0.00060999,120]
[340834876,1729897854608,-1608.6,0.00060999,120]
[340834877,1729897854618,-1608.6,0.00060999,120]
[340834878,1729897854627,-1608.6,0.00060999,120]
[340834879,1729897854636,-1608.6,0.00060999,120]
[340834880,1729897854647,-1608.6,0.00060999,120]
[340834881,1729897854657,-1608.6,0.00060999,120]
[340834882,1729897854666,-1608.60852542,0.00060999,120]
[340834883,1729897854676,-500.0,0.00060999,120]
[340834884,1729897854686,-500.0,0.00060999,120]
[340834885,1729897854695,-187.24864064,0.00060999,120]
[340834886,1729897854704,-207.536709,0.00060999,120]
[340834887,1729897854713,-207.536709,0.00060999,120]
[340834888,1729897854722,-207.536709,0.00060999,120]
[340834889,1729897854732,-207.536709,0.00060999,120]
[340834890,1729897854741,-197.731573,0.00060999,120]
[340834891,1729897854750,-154.027241,0.00060999,120]
[340834892,1729897854759,-1751.228928,0.00060999,120]
[340834893,1729897854768,-1751.228928,0.00060999,120]
[340834894,1729897854778,-1751.228928,0.00060999,120]
[340834895,1729897854787,-1751.228928,0.00060999,120]
[340834896,1729897854796,-150.0,0.00060999,120]
[340834897,1729897854805,-500.0,0.00060999,120]
[340834898,1729897854814,-150.0,0.00060999,120]
[340834899,1729897854823,-500.0,0.00060999,120]
[340834900,1729897854833,-500.0,0.00060999,120]
[340834901,1729897854842,-500.0,0.00060999,120]
[340834902,1729897854851,-150.0,0.00060999,120]
[340834903,1729897854860,-500.0,0.00060999,120]
[340834904,1729897854870,-500.0,0.00060999,120]
[340834905,1729897854879,-500.0,0.00060999,120]
[340834906,1729897854889,-500.0,0.00060999,120]
[340834907,1729897854899,-500.0,0.00060999,120]
[340834908,1729897854908,-500.0,0.00060999,120]
[340834909,1729897854918,-500.0,0.00060999,120]
[340834910,1729897854928,-414.31174441,0.00060999,120]
[340834911,1729897854937,-151.0,0.00060999,120]
[340834912,1729897854946,-584.07,0.00060999,120]
[340834913,1729897854955,-584.07,0.00060999,120]
[340834914,1729897854964,-584.07,0.00060999,120]
[340834915,1729897854974,-50000.0,0.00061,51]
[340834916,1729897854984,-50000.0,0.00061,61]
[340834917,1729897854993,-10000.0,0.00061,61]
[340834918,1729897855003,-1000.0,0.00061,120]
[340834919,1729897855012,-931010.38538564,0.00061,120]
[340834920,1729897855132,-912561.14981047,0.00061,120]
[340834921,1729897855142,-1846.26,0.00061,60]
[340834922,1729897855151,-129068.63,0.00061,120]
[340834923,1729897855161,-693.73094636,0.00061,2]
[340834924,1729897855170,-2110.0,0.00061,30]
[340834925,1729897855179,-150.0,0.00061,2]
[340834926,1729897855189,-151.0,0.00061,120]
[340834927,1729897855198,-151.0,0.00061,120]
[340834928,1729897855208,-151.0,0.00061,120]
[340834929,1729897855218,-151.0,0.00061,120]
[340834930,1729897855228,-151.0,0.00061,120]
[340834931,1729897855238,-151.0,0.00061,120]
[340834932,1729897855248,-151.0,0.00061,120]
[340834933,1729897855258,-151.0,0.00061,120]
[340834934,1729897855267,-257.473111,0.00061,120]
[340834935,1729897855277,-151.0,0.00061,120]
[340834936,1729897855287,-151.0,0.00061,120]
[340834937,1729897855296,-173.995129,0.00061,120]
[340834938,1729897855306,-151.0,0.00061,120]
[340834939,1729897855316,-151.0,0.00061,120]
[340834940,1729897855327,-151.0,0.00061,120]
[340834941,1729897855336,-151.0,0.00061,120]
[340834942,1729897855345,-151.0,0.00061,120]
[340834943,1729897855355,-151.0,0.00061,120]
[340834944,1729897855365,-205.507858,0.00061,120]
[340834945,1729897855375,-205.507858,0.00061,120]
[340834946,1729897855384,-205.507858,0.00061,120]
[340834947,1729897855395,-205.507858,0.00061,120]
[340834948,1729897855405,-151.0,0.00061,120]
[340834949,1729897855415,-151.0,0.00061,120]
[340834950,1729897855425,-151.0,0.00061,120]
[340834951,1729897855434,-151.0,0.00061,120]
[340834952,1729897855443,-151.0,0.00061,120]
[340834953,1729897855453,-151.0,0.00061,120]
[340834954,1729897855463,-648.315824,0.00061,120]
[340834955,1729897855473,-648.315824,0.00061,120]
[340834956,1729897855484,-648.315824,0.00061,120]
[340834957,1729897855494,-648.315824,0.00061,120]
[340834958,1729897855503,-151.0,0.00061,120]
[340834959,1729897855512,-151.0,0.00061,120]
[340834960,1729897855521,-151.0,0.00061,120]
[340834961,1729897855530,-151.0,0.00061,120]
[340834962,1729897855539,-151.0,0.00061,120]
[340834963,1729897855548,-151.0,0.00061,120]
[340834964,1729897855557,-151.0,0.00061,120]
[340834965,1729897855566,-151.0,0.00061,120]
[340834966,1729897855575,-151.0,0.00061,120]
[340834967,1729897855583,-228.220668,0.00061,120]
[340834968,1729897855592,-167.257548,0.00061,120]
[340834969,1729897855601,-167.257548,0.00061,120]
[340834970,1729897855610,-151.0,0.00061,120]
[340834971,1729897855619,-151.0,0.00061,120]
[340834972,1729897855628,-151.0,0.00061,120]
[340834973,1729897855637,-285.605558,0.00061,120]
[340834974,1729897855648,-227.841428,0.00061,120]
[340834975,1729897855657,-633.984123,0.00061,120]
[340834976,1729897855666,-633.984123,0.00061,120]
[340834977,1729897855675,-151.0,0.00061,120]
[340834978,1729897855684,-151.0,0.00061,120]
[340834979,1729897855694,-296.992673,0.00061,120]
[340834980,1729897855703,-170.082598,0.00061,120]
[340834981,1729897855712,-296.992673,0.00061,120]
[340834982,1729897855721,-170.082598,0.00061,120]
[340834983,1729897855730,-151.0,0.00061,120]
[340834984,1729897855739,-151.0,0.00061,120]
[340834985,1729897855748,-151.0,0.00061,120]
[340834986,1729897855757,-207.552281,0.00061,120]
[340834987,1729897855766,-207.552281,0.00061,120]
[340834988,1729897855776,-207.552281,0.00061,120]
[340834989,1729897855784,-207.552281,0.00061,120]
[340834990,1729897855794,-224.794234,0.00061,120]
[340834991,1729897855802,-224.794234,0.00061,120]
[340834992,1729897855811,-151.0,0.00061,120]
[340834993,1729897855821,-224.794234,0.00061,120]
[340834994,1729897855830,-224.794234,0.00061,120]
[340834995,1729897855839,-151.0,0.00061,120]
[340834996,1729897855848,-151.0,0.00061,30]
[340834997,1729897855857,-151.0,0.00061,120]
[340834998,1729897855866,-151.0,0.00061,30]
[340834999,1729897855875,-151.0,0.00061,120]
[340835000,1729897855885,-206.56005,0.00061,30]
[340835001,1729897855895,-207.536709,0.00061,120]
[340835002,1729897855904,-207.536709,0.00061,120]
[340835003,1729897855913,-1751.228928,0.00061,120]
[340835004,1729897855922,-1751.228928,0.00061,120]
[340835005,1729897855931,-203.142974,0.00061,120]
[340835006,1729897855940,-151.0,0.00061018,120]
[340835007,1729897855949,-210.978921,0.00061018,120]
[340835008,1729897855958,-225.64618,0.00061018,120]
[340835009,1729897855968,-151.0,0.00061018,120]
[340835010,1729897855978,-199.382848,0.00061018,120]
[340835011,1729897855987,-151.0,0.00061018,120]
[340835012,1729897855996,-151.0,0.00061018,120]
[340835013,1729897856005,-151.0,0.00061018,120]
[340835014,1729897856014,-205.507858,0.00061018,120]
[340835015,1729897856023,-205.507858,0.00061018,120]
[340835016,1729897856032,-151.0,0.00061018,120]
[340835017,1729897856041,-151.0,0.00061018,120]
[340835018,1729897856051,-151.0,0.00061018,120]
[340835019,1729897856060,-648.315824,0.00061018,120]
[340835020,1729897856070,-648.315824,0.00061018,120]
[340835021,1729897856080,-151.0,0.00061018,120]
[340835022,1729897856089,-151.0,0.00061018,120]
[340835023,1729897856098,-151.0,0.00061018,120]
[340835024,1729897856107,-151.0,0.00061018,120]
[340835025,1729897856116,-167.257548,0.00061018,120]
[340835026,1729897856125,-167.257548,0.00061018,120]
[340835027,1729897856134,-151.0,0.00061018,120]
[340835028,1729897856146,-151.0,0.00061018,120]
[340835029,1729897856237,-151.0,0.00061018,120]
[340835030,1729897856247,-285.605558,0.00061018,120]
[340835031,1729897856256,-633.984123,0.00061018,120]
[340835032,1729897856266,-633.984123,0.00061018,120]
[340835033,1729897856275,-151.0,0.00061018,120]
[340835034,1729897856284,-151.0,0.00061018,120]
[340835035,1729897856293,-296.992673,0.00061018,120]
[340835036,1729897856303,-170.082598,0.00061018,120]
[340835037,1729897856312,-170.082598,0.00061018,120]
[340835038,1729897856321,-296.992673,0.00061018,120]
[340835039,1729897856331,-151.0,0.00061018,120]
[340835040,1729897856340,-151.0,0.00061018,120]
[340835041,1729897856350,-41144.6643424,0.00061018,2]
[340835042,1729897856359,-207.552281,0.00061018,120]
[340835043,1729897856368,-207.552281,0.00061018,120]
[340835044,1729897856378,-8781.7660333,0.00061018,2]
[340835045,1729897856388,-224.794234,0.00061018,120]
[340835046,1729897856402,-224.794234,0.00061018,120]
[340835047,1729897856411,-151.0,0.00061018,120]
[340835048,1729897856420,-151.0,0.00061018,30]
[340835049,1729897856430,-151.0,0.00061018,120]
[340835050,1729897856441,-322.5075503,0.00061018,2]
[340835051,1729897856453,-1604.756711,0.00061018,2]
[340835052,1729897856464,-207.536709,0.00061018,120]
[340835053,1729897856476,-207.536709,0.00061018,120]
[340835054,1729897856487,-730.7218357,0.00061018,2]
[340835055,1729897856496,-1751.228928,0.00061018,120]
[340835056,1729897856506,-1751.228928,0.00061018,120]
[340835057,1729897856515,-208.0,0.0006106,30]
[340835058,1729897856524,-500.0,0.00061078,120]
[340835059,1729897856533,-4564.57469087,0.00061101,15]
[340835060,1729897856542,-500.0,0.00061126,120]
[340835061,1729897856552,-500.0,0.00061177,120]
[340835062,1729897856561,-500.0,0.00061285,120]
[340835063,1729897856571,-338.10907939,0.00061327,2]
[340835064,1729897856580,-487.0,0.00061358,3]
[340835065,1729897856590,-500.0,0.00061361,120]
[340835066,1729897856599,-2110.0,0.000615,30]
[340835067,1729897856609,-153.39907432,0.000615,28]
[340835068,1729897856619,-503.01007468,0.00061567,120]
[340835069,1729897856629,-179567.3605423,0.000617,58]
[340835070,1729897856639,-338.10907939,0.00061724,2]
[340835071,1729897856651,-4564.57469087,0.00061734,15]
[340835072,1729897856660,-170.124,0.00061753,2]
[340835073,1729897856669,-1245.0,0.00061753,120]
[340835074,1729897856678,-187.274,0.00061753,120]
[340835075,1729897856687,-209.895,0.00061753,120]
[340835076,1729897856697,-810.0,0.00061753,2]
[340835077,1729897856706,-1264.0,0.00061753,120]
[340835078,1729897856716,-500.0,0.00061775,120]
[340835079,1729897856725,-175.446714,0.0006183,120]
[340835080,1729897856734,-207.552281,0.0006183,120]
[340835081,1729897856743,-207.552281,0.0006183,120]
[340835082,1729897856753,-224.794234,0.0006183,120]
[340835083,1729897856763,-224.794234,0.0006183,120]
[340835084,1729897856772,-151.0,0.0006183,120]
[340835085,1729897856781,-151.0,0.0006183,30]
[340835086,1729897856791,-151.0,0.0006183,120]
[340835087,1729897856800,-296.64064872,0.0006183,120]
[340835088,1729897856809,-169.37837909,0.0006183,120]
[340835089,1729897856819,-242.61706657,0.0006183,120]
[340835090,1729897856829,-1175.07,0.00061846,2]
[340835091,1729897856838,-2250.0,0.000619,90]
[340835092,1729897856847,-151.0,0.000619,120]
[340835093,1729897856856,-151.0,0.000619,120]
[340835094,1729897856865,-151.0,0.000619,120]
[340835095,1729897856874,-205.507858,0.000619,120]
[340835096,1729897856884,-205.507858,0.000619,120]
[340835097,1729897856893,-151.0,0.000619,120]
[340835098,1729897856904,-151.0,0.000619,120]
[340835099,1729897856913,-292.732976,0.000619,120]
[340835100,1729897856922,-648.315824,0.000619,120]
[340835101,1729897856932,-648.315824,0.000619,120]
[340835102,1729897856941,-151.0,0.000619,120]
[340835103,1729897856950,-151.0,0.000619,120]
[340835104,1729897856959,-161.785009,0.000619,120]
[340835105,1729897856969,-151.0,0.000619,120]
[340835106,1729897856978,-181.94,0.000619,120]
[340835107,1729897856988,-285.605558,0.000619,120]
[340835108,1729897856997,-633.984123,0.000619,120]
[340835109,1729897857006,-633.984123,0.000619,120]
[340835110,1729897857016,-296.992673,0.000619,120]
[340835111,1729897857025,-170.082598,0.000619,120]
[340835112,1729897857034,-170.082598,0.000619,120]
[340835113,1729897857043,-296.992673,0.000619,120]
[340835114,1729897857053,-207.536709,0.000619,120]
[340835115,1729897857062,-207.536709,0.000619,120]
[340835116,1729897857071,-1751.228928,0.000619,120]
[340835117,1729897857080,-1751.228928,0.000619,120]
[340835118,1729897857090,-50000.0,0.00062,52]
[340835119,1729897857099,-50000.0,0.00062,62]
[340835120,1729897857108,-10000.0,0.00062,63]
[340835121,1729897857117,-2110.0,0.00062,30]
[340835122,1729897857126,-151.0,0.00062,120]
[340835123,1729897857135,-151.0,0.00062,120]
[340835124,1729897857147,-167.257548,0.00062,120]
[340835125,1729897857157,-167.257548,0.00062,120]
[340835126,1729897857166,-151.0,0.00062,120]
[340835127,1729897857175,-151.0,0.00062,120]
[340835128,1729897857184,-151.0,0.00062,120]
[340835129,1729897857193,-151.0,0.00062,120]
[340835130,1729897857203,-500.0,0.00062005,120]
[340835131,1729897857212,-166.68,0.00062085,2]
[340835132,1729897857221,-165.83384321,0.00062101,88]
[340835133,1729897857230,-338.10907939,0.00062121,2]
[340835134,1729897857240,-1000.0,0.00062141,14]
[340835135,1729897857252,-500.0,0.00062243,120]
[340835136,1729897857260,-519.05452317,0.00062342,15]
[340835137,1729897857270,-1000.0,0.00062342,15]
[340835138,1729897857279,-4564.57469087,0.00062367,15]
[340835139,1729897857288,-41351.3042119,0.00062371,3]
[340835140,1729897857298,-8825.870488,0.00062371,3]
[340835141,1729897857307,-324.1272723,0.00062371,3]
[340835142,1729897857316,-1612.8162425,0.00062371,3]
[340835143,1729897857326,-3618.8111827,0.0006238,2]
[340835144,1729897857335,-170.0,0.00062392,2]
[340835145,1729897857344,-500.0,0.000624,120]
[340835146,1729897857352,-151.0,0.00062414,120]
[340835147,1729897857362,-151.0,0.00062414,120]
[340835148,1729897857371,-151.0,0.00062414,120]
[340835149,1729897857380,-205.507858,0.00062414,120]
[340835150,1729897857389,-205.507858,0.00062414,120]
[340835151,1729897857402,-151.0,0.00062414,120]
[340835152,1729897857411,-151.0,0.00062414,120]
[340835153,1729897857420,-500.0,0.00062416,120]
[340835154,1729897857430,-500.0,0.00062478,120]
[340835155,1729897857439,-1250.0,0.00062497,120]
[340835156,1729897857448,-429.79704637,0.00062499,120]
[340835157,1729897857457,-500.0,0.00062499,120]
[340835158,1729897857466,-306.84508982,0.00062499,5]
[340835159,1729897857475,-267561.29596427,0.000625,120]
[340835160,1729897857484,-2110.0,0.000625,30]
[340835161,1729897857494,-151.0,0.000625,120]
[340835162,1729897857503,-151.0,0.000625,120]
[340835163,1729897857512,-151.0,0.000625,120]
[340835164,1729897857521,-151.0,0.000625,120]
[340835165,1729897857530,-151.0,0.000625,120]
[340835166,1729897857539,-205.507858,0.000625,120]
[340835167,1729897857548,-205.507858,0.000625,120]
[340835168,1729897857557,-151.0,0.000625,120]
[340835169,1729897857566,-151.0,0.000625,120]
[340835170,1729897857575,-648.315824,0.000625,120]
[340835171,1729897857584,-648.315824,0.000625,120]
[340835172,1729897857593,-151.0,0.000625,120]
[340835173,1729897857602,-180.70619,0.000625,120]
[340835174,1729897857612,-151.0,0.000625,120]
[340835175,1729897857621,-167.257548,0.000625,120]
[340835176,1729897857631,-167.257548,0.000625,120]
[340835177,1729897857640,-151.0,0.000625,120]
[340835178,1729897857650,-285.605558,0.000625,120]